[Event "XVI Memorial Lezcano Montalvo 2024"]
[Site "Gran Canaria"]
[Date "2024.03.28"]
[Round "6.1"]
[White "Larino Nieto, David"]
[Black "Fiorito, Francisco"]
[Result "1/2-1/2"]
[ECO "B50"]
[WhiteElo "2365"]
[BlackElo "2368"]
[Annotator "RC"]
[PlyCount "102"]
[EventDate "2024.03.23"]
[EventType "swiss"]
[EventCountry "ESP"]
[SourceTitle "playchess.com"]
[Source "ChessBase"]
[SourceQuality "1"]
[TimeControl "5400+30"]

1. e4 {[%emt 0:10:11]} c5 {[%emt 0:00:13]} 2. Nf3 {[%emt 0:00:05]} Nc6 {[%emt 0:00:06]} 3. b3 {[%emt 0:00:06]} d6 {[%emt 0:02:30]} 4. Bb2 {[%emt 0:00:16]} e5 {[%emt 0:02:54]} 5. Bb5 {[%emt 0:00:05]} Nf6 {[%emt 0:06:02]} 6. O-O {[%emt 0:03:50]} Be7 {[%emt 0:04:06]} 7. Re1 {[%emt 0:00:33]} O-O {[%emt 0:00:20]} 8. c3 {[%emt 0:02:40]} Bg4 {[%emt 0:02:45]} 9. h3 {[%emt 0:00:06]} Bh5 {[%emt 0:00:13]} 10. Bxc6 {[%emt 0:02:32]} bxc6 {[%emt 0:00:06]} 11. d4 {[%emt 0:00:04]} cxd4 {[%emt 0:03:34]} 12. cxd4 {[%emt 0:00:01]} exd4 {[%emt 0:08:50]} 13. Bxd4 {[%emt 0:00:09]} d5 {[%emt 0:02:02]} 14. exd5 {[%emt 0:06:47]} Nxd5 {[%emt 0:01:08]} 15. Nbd2 {[%emt 0:00:11]} Nf4 {[%emt 0:06:34]} 16. Qc2 {[%emt 0:08:03]} Bb4 {[%emt 0:04:54]} 17. Be3 {[%emt 0:29:16]} Bxf3 {[%emt 0:14:40]} 18. Bxf4 {[%emt 0:02:24]} Bd5 {[%emt 0:01:01]} 19. Red1 {[%emt 0:08:13]} Qf6 {[%emt 0:01:39]} 20. Bg3 {[%emt 0:05:16]} Rfe8 {[%emt 0:02:59]} 21. Nf1 {[%emt 0:00:24]} Bc3 {[%emt 0:03:57]} 22. Rac1 {[%emt 0:00:57]} Bb2 {[%emt 0:01:47]} 23. Rb1 {[%emt 0:00:05]} Bd4 {[%emt 0:00:09]} 24. Qd2 {[%emt 0:04:47]} Bb6 {[%emt 0:00:06]} 25. Re1 {[%emt 0:00:42]} h5 {[%emt 0:00:53]} 26. h4 {[%emt 0:00:39]} Qg6 {[%emt 0:00:58]} 27. Rbd1 {[%emt 0:02:04]} Re4 {[%emt 0:00:49]} 28. Rxe4 {[%emt 0:03:02]} Qxe4 {[%emt 0:00:11]} 29. Ne3 {[%emt 0:00:03]} Bxe3 {[%emt 0:00:25]} 30. fxe3 {[%emt 0:00:01]} Qg4 {[%emt 0:00:09]} 31. Kh2 {[%emt 0:00:27]} Re8 {[%emt 0:00:06]} 32. Rf1 {[%emt 0:01:22]} Qe4 {[%emt 0:00:17]} 33. Qe2 {[%emt 0:02:48]} Re6 {[%emt 0:01:15]} 34. Rf2 {[%emt 0:01:54]} Qg6 {[%emt 0:04:15]} 35. Bf4 {[%emt 0:00:14]} Kh7 {[%emt 0:00:35]} 36. Bg5 {[%emt 0:01:18]} Re4 {[%emt 0:00:44]} 37. Bf4 {[%emt 0:00:10]} f6 {[%emt 0:00:45]} 38. Rf3 {[%emt 0:00:32]} Qg4 {[%emt 0:02:34]} 39. Qf2 {[%emt 0:01:11]} Re7 {[%emt 0:00:15]} 40. Rg3 {[%emt 0:01:54]} Qf5 {[%emt 0:00:08]} 41. Qd2 {[%emt 0:01:13]} Rd7 {[%emt 0:03:00]} 42. Qb4 {[%emt 0:00:44]} Qe4 {[%emt 0:00:15]} 43. Qf8 {[%emt 0:00:50]} Qe7 {[%emt 0:00:14]} 44. Qc8 {[%emt 0:00:58]} Be4 {[%emt 0:00:18]} 45. Qa6 {[%emt 0:00:23]} Qe6 {[%emt 0:01:16]} 46. Qc8 {[%emt 0:00:29]} Qe7 {[%emt 0:00:24]} 47. Qa6 {[%emt 0:00:05]} Rd2 {[%emt 0:00:36]} 48. Qa5 {[%emt 0:00:08]} Rd5 {[%emt 0:00:09]} 49. Qa4 {[%emt 0:00:34]} Rd7 {[%emt 0:01:34]} 50. Qa6 {[%emt 0:00:34]} Qf7 {[%emt 0:01:47]} 51. Qa4 {[%emt 0:00:26]} Qe7 {[%emt 0:01:39]} 1/2-1/2

[Event "XVI Memorial Lezcano Montalvo 2024"]
[Site "Gran Canaria"]
[Date "2024.03.28"]
[Round "6.2"]
[White "Tutisani, Noe"]
[Black "Dvirnyy, Danyyil"]
[Result "1/2-1/2"]
[ECO "C65"]
[WhiteElo "2405"]
[BlackElo "2482"]
[Annotator "TA"]
[PlyCount "84"]
[EventDate "2024.03.23"]
[EventType "swiss"]
[EventCountry "ESP"]
[SourceTitle "playchess.com"]
[Source "ChessBase"]
[SourceQuality "1"]
[TimeControl "5400+30"]

{[%evp 9,84,9,19,12,22,19,18,15,29,27,19,16,24,20,39,34,34,41,47,47,51,52,46,46,60,-10,-14,-14,-10,-21,-20,-27,-26,-26,-28,-30,-29,-30,-27,-23,-29,-22,-22,-58,-46,-95,-80,-77,-100,-77,-79,-83,-64,-88,-59,-62,-59,-67,-67,-75,-39,-51,-39,-49,-50,-63,-68,-72,-81,-95,-85,-88,-41,-47,-14,-28,0]} 1. e4 {[%emt 0:00:05]} e5 {[%emt 0:00:18]} 2. Nf3 {[%emt 0:00:06]} Nc6 {[%emt 0:00:07]} 3. Bb5 {[%emt 0:00:06]} Nf6 {[%emt 0:00:32]} 4. d3 {[%emt 0:00:19]} Bc5 {[%emt 0:00:25]} 5. Nbd2 {[%emt 0:00:06]} O-O {[%emt 0:01:42]} 6. Nb3 {[%emt 0:00:06][%cal Ob5c6] [#] Bxc6! would now be deadly.} Bd6 {[%emt 0:03:39]} 7. O-O {[%emt 0:05:35]} a6 {[%emt 0:02:59]} 8. Bxc6 {[%emt 0:00:12] The position is equal.} dxc6 {[%emt 0:00:06]} 9. Bg5 {[%emt 0:00:06]} Re8 {[%emt 0:06:59]} 10. Re1 {[%emt 0:00:07]} c5 {[%emt 0:01:48]} 11. a4 {[%emt 0:04:44]} a5 {[%emt 0:11:54]} 12. Nbd2 {[%emt 0:00:57]} Re6 {[%emt 0:09:02]} 13. Nc4 {[%emt 0:05:17]} Qe8 {[%emt 0:00:42]} 14. Bd2 {[%emt 0:02:57]} b6 {[%emt 0:00:56]} 15. Ng5 {[%emt 0:10:45]} Re7 {[%emt 0:01:18]} 16. Bc3 {[%emt 0:00:09]} Nd7 {[%emt 0:04:50]} 17. Qd2 {[%emt 0:09:19]} (17. Qh5 $14 h6 18. Nf3) 17... f6 $11 {[%emt 0:01:11]} 18. Nf3 {[%emt 0:00:13]} Nf8 {[%emt 0:00:34]} 19. Ne3 {[%emt 0:01:40]} Ne6 {[%emt 0:03:00]} 20. Nd5 {[%emt 0:04:53]} Rf7 {[%emt 0:00:37]} 21. Qd1 {[%emt 0:04:43]} Qd8 {[%emt 0:03:36]} 22. Nd2 {[%emt 0:01:31]} c6 {[%emt 0:00:35]} 23. Ne3 {[%emt 0:00:03]} b5 $36 {[%emt 0:01:46][%mdl 2048] Hoping for ...b4. Black fights for an advantage.} 24. b3 {[%emt 0:00:05]} Nd4 {[%emt 0:00:11]} 25. Bb2 {[%emt 0:00:18]} Bf8 {[%emt 0:00:45]} 26. f3 {[%emt 0:10:15]} Rb7 {[%emt 0:01:32]} 27. c3 {[%emt 0:14:28]} (27. g3 $15) 27... Ne6 $17 {[%emt 0:02:32][%cal Bd4e6,Be6c5,Bc5b3][%mdl 32]} 28. axb5 {[%emt 0:00:04]} cxb5 {[%emt 0:05:16][%cal Oe6f4]} 29. Nd5 {[%emt 0:00:06]} Bd7 {[%emt 0:04:17]} 30. Nf1 {[%emt 0:03:32] [#]} c4 $1 {[%emt 0:07:47]} 31. Nfe3 {[%emt 0:03:57]} (31. bxc4 bxc4) 31... cxd3 {[%emt 0:05:07]} 32. Qxd3 {[%emt 0:00:06]} Nc5 {[%emt 0:00:35]} 33. Qc2 {[%emt 0:00:53]} a4 {[%emt 0:01:58]} 34. b4 {[%emt 0:00:28]} Nb3 {[%emt 0:00:25]} 35. Rad1 {[%emt 0:00:53]} Qc8 {[%emt 0:00:38]} 36. Rd3 {[%emt 0:02:17]} Be6 {[%emt 0:00:08]} 37. Qd1 {[%emt 0:00:13]} Qc6 {[%emt 0:02:00]} 38. Ba3 {[%emt 0:01:01]} Rd7 {[%emt 0:00:31]} 39. Bb2 {[%emt 0:00:39]} Rad8 {[%emt 0:00:25]} 40. g4 {[%emt 0:00:52]} Bf7 {[%emt 0:04:53]} (40... Kf7 $17 41. h4 h5) 41. Kg2 {[%emt 0:00:44]} h5 {[%emt 0:01:14]} 42. h3 {[%emt 0:00:25]} h4 {[%emt 0:03:49] Weighted Error Value: White=0.09 (flawless) /Black=0.08 (flawless) .  Mistake:       	White=2     	Black=1      Inaccurate:     	White=1     	Black=4      OK:         	White=14    	Black=11     Best:        	White=1     	Black=2} 1/2-1/2

[Event "XVI Memorial Lezcano Montalvo 2024"]
[Site "Gran Canaria"]
[Date "2024.03.28"]
[Round "6.3"]
[White "Kovchan, Alexander"]
[Black "Barlov, Dragan"]
[Result "1-0"]
[ECO "B42"]
[WhiteElo "2477"]
[BlackElo "2387"]
[Annotator "TA"]
[PlyCount "93"]
[EventDate "2024.03.23"]
[EventType "swiss"]
[EventCountry "ESP"]
[SourceTitle "playchess.com"]
[Source "ChessBase"]
[SourceQuality "1"]
[TimeControl "5400+30"]

{[%evp 15,93,32,47,56,47,50,77,69,71,62,77,70,79,72,72,74,89,64,75,84,81,71,82,89,75,71,92,91,93,92,87,86,80,87,91,95,97,60,54,51,57,28,39,17,7,0,0,0,9,16,49,2,50,47,60,45,62,72,74,5,7,4,86,86,85,85,86,86,86,86,87,87,29963,29958,29964,29963,29976,29977,29979,29980]} 1. e4 {[%emt 0:00:03]} c5 {[%emt 0:01:25]} 2. Nf3 {[%emt 0:00:09]} e6 {[%emt 0:00:06]} 3. d4 {[%emt 0:00:05]} cxd4 {[%emt 0:00:03]} 4. Nxd4 {[%emt 0:00:08]} a6 {[%emt 0:00:29]} 5. Bd3 {[%emt 0:00:39]} Nf6 {[%emt 0:00:39]} 6. O-O {[%emt 0:00:34]} Qc7 {[%emt 0:00:31]} 7. Qe2 {[%emt 0:00:25]} d6 {[%emt 0:02:40]} 8. c4 {[%emt 0:00:14]} Nc6 {[%emt 0:01:35]} 9. Nxc6 {[%emt 0:04:33]} bxc6 {[%emt 0:00:36]} 10. Nc3 {[%emt 0:00:42]} e5 {[%emt 0:13:49] [#]} 11. c5 $1 {[%emt 0:03:11] White is better.} dxc5 {[%emt 0:03:32]} 12. Na4 {[%emt 0:00:45]} Be7 {[%emt 0:14:50]} 13. Be3 {[%emt 0:01:10][%mdl 1024] White has strong compensation.} O-O {[%emt 0:05:14]} 14. Rfc1 {[%emt 0:01:27]} ({Much weaker is} 14. Nxc5 Ng4 $11) 14... a5 {[%emt 0:02:03]} 15. h3 {[%emt 0:05:23]} Rd8 {[%emt 0:12:35]} 16. b3 {[%emt 0:11:23]} Nd7 {[%emt 0:02:01][%cal Bf6d7,Bd7f8,Bf8e6,Be6d4][%mdl 32]} 17. Bc4 {[%emt 0:07:28] White has more active pieces.} Nf8 {[%emt 0:06:01]} 18. Nxc5 {[%emt 0:11:36]} Bxc5 {[%emt 0:07:27]} 19. Bxc5 {[%emt 0:00:15]} Ne6 {[%emt 0:00:34]} 20. Qe3 {[%emt 0:01:52] aiming for Bb6.} Nd4 {[%emt 0:12:22]} 21. Rd1 {[%emt 0:03:14][%cal Rc5d4]} Be6 {[%emt 0:06:24]} 22. Bxd4 {[%emt 0:03:51]} exd4 {[%emt 0:00:15]} 23. Rxd4 {[%emt 0:00:07]} Rxd4 {[%emt 0:02:50]} 24. Qxd4 {[%emt 0:00:07]} Rd8 {[%emt 0:00:29]} 25. Qc5 {[%emt 0:05:15]} Bxc4 {[%emt 0:00:04]} 26. bxc4 $16 {[%emt 0:00:58][%mdl 4096] Endgame. KQR-KQR} h6 {[%emt 0:01:43]} 27. e5 {[%emt 0:01:58]} a4 {[%emt 0:01:28]} 28. Re1 {[%emt 0:00:56]} Rd2 {[%emt 0:00:38]} 29. a3 {[%emt 0:00:20]} Qd7 {[%emt 0:00:19]} 30. Re4 {[%emt 0:02:41]} Qf5 {[%emt 0:01:30] Inhibits Rf4.} 31. Re1 {[%emt 0:05:50] Against Rd1} (31. Qxc6 $2 {gets mated.} Qxf2+ 32. Kh2 Qxg2#) 31... Qf4 {[%emt 0:00:46]} 32. Rf1 {[%emt 0:01:29]} Qe4 {[%emt 0:00:44]} (32... Rc2 {simplifies} 33. Qxc6 Qxc4 34. Qxc4 Rxc4 35. f4 Kf8) 33. Qb4 {[%emt 0:00:52]} (33. Qa5 $14 {is more appropriate.} Rc2 34. Qa8+ (34. Qxa4 Qxc4 35. Qxc4 Rxc4 $14) 34... Kh7 35. Qxa4) 33... Rc2 {[%emt 0:00:21]} (33... Qc2 $11) 34. Qxa4 $14 {[%emt 0:00:30]} Rxc4 {[%emt 0:00:30]} 35. Qb3 {[%emt 0:01:23]} Rd4 {[%emt 0:00:32]} 36. Qb8+ {[%emt 0:03:36]} Kh7 {[%emt 0:00:01]} 37. Qe8 {[%emt 0:00:06]} (37. Qb7 $16) 37... Qd5 $11 {[%emt 0:00:33]} 38. Re1 $36 {[%emt 0:00:03][%mdl 2048] Black is under pressure.} Re4 {[%emt 0:01:20]} (38... Rd1 $1 $11 39. Rxd1 Qxd1+ 40. Kh2 Qd5) 39. Rxe4 $16 {[%emt 0:00:23]} Qxe4 {[%emt 0:00:01]} 40. Qxf7 {[%emt 0:00:41]} Qxe5 {[%emt 0:00:05] KQ-KQ} 41. Qa2 {[%emt 0:01:55]} c5 {[%emt 0:00:53][%cal Bc6c5,Bc5c4][%mdl 32]} 42. a4 {[%emt 0:00:02][%cal Ba3a4,Ba4a5,Ba5a6][%mdl 32] Hoping for a5.} Qe1+ {[%emt 0:00:57]} 43. Kh2 {[%emt 0:00:01] And now Qc2+ would win.} Qb4 $2 {[%emt 0:00:30][%mdl 8192] [#] A mistake that costs the game.} (43... Qe5+ $16 44. g3 Qf5) 44. a5 $1 {[%emt 0:00:38] White mates.} c4 {[%emt 0:00:15]} 45. a6 {[%emt 0:00:14]} Qb8+ {[%emt 0:00:41] [#]} 46. f4 $1 {[%emt 0:02:34][%mdl 512]} Qb3 {[%emt 0:00:31]} (46... c3 47. Qc2+) 47. Qa1 {[%emt 0:00:43] Weighted Error Value: White=0.09 (flawless) /Black=0.29 (precise) .  Loses game:     	---       	Black=1      Mistake:       	White=2     	Black=2      Inaccurate:     	White=2     	Black=2      OK:         	White=12    	Black=11     Best:        	White=3     	Black=5      Strong:       	White=1     	---} 1-0

[Event "XVI Memorial Lezcano Montalvo 2024"]
[Site "Gran Canaria"]
[Date "2024.03.28"]
[Round "6.4"]
[White "Sanz Wawer, Daniel"]
[Black "Kurajica, Bojan"]
[Result "0-1"]
[ECO "B30"]
[WhiteElo "2397"]
[BlackElo "2444"]
[Annotator "TA"]
[PlyCount "86"]
[EventDate "2024.03.23"]
[EventType "swiss"]
[EventCountry "ESP"]
[SourceTitle "playchess.com"]
[Source "ChessBase"]
[SourceQuality "1"]
[TimeControl "5400+30"]

{[%evp 13,86,11,12,0,3,0,0,0,0,-5,6,-26,-8,-30,0,-37,6,-29,75,65,85,38,42,29,33,29,33,36,33,25,38,0,0,0,0,0,0,-24,-37,-24,-19,-57,-38,-131,-108,-180,-188,-172,-137,-398,-408,-391,-376,-958,-987,-962,-988,-788,-766,-29988,-29989,-29989,-29990,-29990,-29989,-29989,-29985,-29987,-1513,-1520,-1520,-1499,-1325,-1174,-839]} 1. e4 {[%emt 0:00:01]} c5 {[%emt 0:01:34]} 2. Nf3 {[%emt 0:00:08]} Nc6 {[%emt 0:00:08]} 3. Bb5 {[%emt 0:00:12]} e6 {[%emt 0:00:12]} 4. Bxc6 {[%emt 0:00:15]} bxc6 {[%emt 0:00:08]} 5. d3 {[%emt 0:00:33]} Qc7 {[%emt 0:00:56]} 6. Qe2 {[%emt 0:00:23] B30: Sicilian: 2...Nc6 3 Bb5, lines without ...g6.} e5 {[%emt 0:00:30]} 7. O-O {[%emt 1:32:28]} d6 {[%emt 0:02:30]} 8. Na3 $146 {[%emt 0:00:00]} ({Predecessor:} 8. c3 Ba6 9. Rd1 Be7 10. Qc2 Bf6 11. Be3 Ne7 12. d4 cxd4 13. cxd4 exd4 14. Bxd4 Bxd4 15. Nxd4 {0-1 Werksma,A (2196)-Nijboer,F (2464) EU Corporate-ch rapid 2022 (9)}) 8... Ne7 {[%emt 0:10:14]} 9. Nh4 {[%emt 0:00:00]} h6 {[%emt 0:07:56]} 10. g3 {[%emt 0:00:00]} g5 {[%emt 0:08:36]} 11. Ng2 {[%emt 0:00:00]} Bh3 {[%emt 0:00:51]} 12. Re1 {[%emt 0:00:00]} Qd7 {[%emt 0:04:41]} 13. Ne3 {[%emt 0:00:00]} h5 {[%emt 0:00:36]} 14. Bd2 {[%emt 0:00:00]} Ng6 {[%emt 0:12:01]} 15. Qf3 {[%emt 0:00:00]} (15. Nac4 $5) 15... Bg4 {[%emt 0:06:58]} (15... Be6 $11 {remains equal.}) 16. Nxg4 $16 {[%emt 0:00:00]} hxg4 {[%emt 0:00:45]} 17. Qf5 {[%emt 0:00:00]} (17. Qf6 $16) 17... Qxf5 $14 {[%emt 0:02:05]} 18. exf5 {[%emt 0:00:00]} Ne7 {[%emt 0:00:10]} 19. f6 {[%emt 0:00:00]} Ng8 {[%emt 0:09:49]} 20. Bxg5 {[%emt 0:00:00]} Rh5 {[%emt 0:00:08]} 21. Bh4 {[%emt 0:00:00]} Nh6 {[%emt 0:00:06]} 22. Re4 {[%emt 0:00:00]} d5 {[%emt 0:01:14]} 23. Ra4 {[%emt 0:00:00]} Kd7 {[%emt 0:05:58]} 24. c3 {[%emt 0:00:00]} Nf5 {[%emt 0:01:33]} 25. Rxg4 {[%emt 0:00:00]} Nxh4 {[%emt 0:00:04]} 26. gxh4 {[%emt 0:00:00]} Rb8 {[%emt 0:00:55]} 27. Ra4 {[%emt 0:03:15]} Rxb2 {[%emt 0:05:31]} 28. Rxa7+ {[%emt 0:00:02]} (28. Rb1 $1 $15 Rxa2 29. Rxa7+ Ke6 30. Nb5 Rxa7 31. Nxa7) 28... Ke6 $17 {[%emt 0:00:11]} 29. Rc7 {[%emt 0:02:35]} (29. Rb1 $17 {might work better.} Rd2 (29... Rxa2 30. Nb5 $15) 30. Rb6) 29... c4 $19 {[%emt 0:03:04]} (29... Rxh4 30. Rxc6+ Kf5 (30... Bd6 31. c4 $16) 31. Rc8) 30. Rxc6+ {[%emt 0:01:37]} Kf5 {[%emt 0:00:18]} 31. dxc4 $2 {[%emt 0:02:26][%mdl 8192]} (31. Nxc4 $17 {was forced.} dxc4 32. Rxc4) 31... Bxa3 $19 {[%emt 0:00:14]} 32. cxd5 {[%emt 0:00:01]} Rxh4 {[%emt 0:03:06]} 33. Rd1 $2 {[%emt 0:00:29]} (33. Rf1) 33... Rg4+ $19 {[%emt 0:02:00]} (33... Rxa2 34. Ra6 $17) 34. Kh1 {[%emt 0:01:23]} Rxf2 {[%emt 0:01:15]} (34... Rxa2 35. Ra6 $11) 35. d6 {[%emt 0:00:04]} Rgg2 {[%emt 0:00:17]} (35... Kxf6 $2 36. d7+ Kg7 37. d8=Q $18 (37. d8=R Rgg2 $18)) 36. c4 {[%emt 0:01:59]} Rxh2+ {[%emt 0:00:44]} 37. Kg1 {[%emt 0:00:00]} Rfg2+ {[%emt 0:00:51]} 38. Kf1 {[%emt 0:00:01]} Rxa2 {[%emt 0:01:08]} 39. Kg1 {[%emt 0:00:01]} Rag2+ {[%emt 0:01:29]} (39... Kxf6 40. d7+ Kg7 41. d8=Q $11) 40. Kf1 {[%emt 0:00:01]} Rd2 {[%emt 0:00:11]} ({Weaker is} 40... Kxf6 41. d7+ Kg7 42. d8=Q $11) (40... Kf4 $142 41. d7 Rd2 42. Rxd2 Rxd2 43. Ra6 Bc5 44. Ra8 Rxd7 45. Rh8 e4 46. Rh4+ Kf3 47. Rh3+ Kg4 48. Rb3 Rd3 49. Rxd3 exd3 50. Ke1 Kf3 51. Kd2 Ke4 52. Kd1 Ke3 53. Ke1 d2+ 54. Kd1 Bb6 55. Kc2 Ke2 56. c5 d1=Q+ (56... d1=R {is a self mate.} 57. cxb6 Rd7 58. Kc3 Rb7 59. Kd4 Rxb6 60. Ke4 Rxf6 61. Kd4 Re6 62. Kc4 f5 63. Kd5 Re3 64. Kd6 f4 65. Kc6 f3 66. Kd7 f2 67. Kd6 f1=Q 68. Kd5 Qf5+ 69. Kd4 Re4+ 70. Kc3 Qb5 71. Kc2 Rc4#) 57. Kc3 Bxc5 58. Kc4 Qd6 (58... Qd4+ {leads to mate.} 59. Kb3 Qd3+ 60. Ka4 Qc4+ 61. Ka5 Qb4+ 62. Ka6 Qb6#) 59. Kb3 Ba3 (59... Qxf6 60. Kc4 Qb6 61. Kd5 Be3 62. Kc4 Kd2 63. Kd5 Qe6#) 60. Ka2 Qb4 61. Ka1 Qb2#) 41. Rxd2 $19 {[%emt 0:00:07]} Rxd2 {[%emt 0:00:06]} 42. c5 {[%emt 0:01:03]} Bxc5 {[%emt 0:01:08]} 43. Rxc5 {[%emt 0:00:06]} Rxd6 {[%emt 0:00:04]} 0-1

[Event "XVI Memorial Lezcano Montalvo 2024"]
[Site "Gran Canaria"]
[Date "2024.03.28"]
[Round "6.5"]
[White "Hernandez Leon, Alberto"]
[Black "Strikovic, Aleksa"]
[Result "1-0"]
[ECO "A80"]
[WhiteElo "2207"]
[BlackElo "2430"]
[Annotator "TA"]
[PlyCount "33"]
[EventDate "2024.03.23"]
[EventType "swiss"]
[EventCountry "ESP"]
[SourceTitle "playchess.com"]
[Source "ChessBase"]
[SourceQuality "1"]
[TimeControl "5400+30"]

{[%evp 9,33,46,44,29,35,33,27,25,30,21,48,52,54,47,72,34,41,40,70,31,104,95,308,291,689,652]} 1. d4 {[%emt 0:00:10]} f5 {[%emt 0:00:11]} 2. Bg5 {[%emt 0:00:21]} g6 {[%emt 0:00:06]} 3. Nc3 {[%emt 0:00:36]} Bg7 {[%emt 0:00:06]} 4. Nf3 {[%emt 0:00:16]} Nf6 {[%emt 0:05:07]} 5. e3 {[%emt 0:00:50]} c6 {[%emt 0:07:19]} 6. Qd2 {[%emt 0:07:10]} Ne4 {[%emt 0:06:57]} 7. Nxe4 {[%emt 0:02:57]} fxe4 {[%emt 0:00:09]} 8. Ng1 {[%emt 0:00:48] White has an edge.} d5 {[%emt 0:02:09]} 9. f3 {[%emt 0:04:22]} exf3 {[%emt 0:00:38]} 10. Nxf3 {[%emt 0:00:13]} Bf5 {[%emt 0:00:02]} 11. Bd3 {[%emt 0:04:01]} O-O {[%emt 0:00:22]} 12. Bxf5 {[%emt 0:05:50]} Rxf5 {[%emt 0:00:05]} 13. Qb4 {[%emt 0:00:53]} Qc8 {[%emt 0:44:44]} 14. Qxe7 {[%emt 0:10:11]} Na6 {[%emt 0:00:14]} (14... Bf8 $14 15. Qd8 Qxd8 16. Bxd8 Nd7) 15. Qa3 {[%emt 0:08:57] White is more active.} Rxg5 $2 {[%emt 0:04:25] [#]} 16. Nxg5 $18 {[%emt 0:01:05]} Qg4 $2 {[%emt 0:00:02]} (16... Bf6) 17. Qe7 {[%emt 0:01:01] Weighted Error Value: White=0.12 (very precise) /Black=0.87.  Loses game:     	---       	Black=1      Mistake:       	---       	Black=2      Inaccurate:     	White=2     	Black=2      OK:         	White=4     	Black=2      Best:        	White=1     	---} 1-0